[Event "*** SCC Grand Prix: Titled Tuesday Blitz"]
[Site "Chess.com"]
[Date "2020.07.21"]
[Round "6"]
[White "Duong57"]
[Black "LastHeroJr"]
[Result "1/2-1/2"]
[WhiteElo "2308"]
[BlackElo "2431"]
[TimeControl "180+1"]
[EndTime "11:06:40 PDT"]
[Termination "Game drawn by repetition"]

1. d4 {[%clk 0:03:00.9]} 1... Nf6 {[%clk 0:02:59.7]} 2. c4 {[%clk 0:02:59.1]}
2... g6 {[%clk 0:02:59.4]} 3. Nc3 {[%clk 0:02:58]} 3... Bg7 {[%clk 0:02:59.8]}
4. e4 {[%clk 0:02:57.6]} 4... d6 {[%clk 0:03:00.3]} 5. Nf3 {[%clk 0:02:58.1]}
5... O-O {[%clk 0:03:00.5]} 6. Be2 {[%clk 0:02:58.5]} 6... e6 {[%clk 0:03:00.9]}
7. O-O {[%clk 0:02:51]} 7... c6 {[%clk 0:03:01.1]} 8. Re1 {[%clk 0:02:28.5]}
8... e5 {[%clk 0:02:59]} 9. Bf1 {[%clk 0:02:26.3]} 9... Qc7 {[%clk 0:02:54.5]}
10. b4 {[%clk 0:02:07.9]} 10... Bg4 {[%clk 0:02:53.7]} 11. d5 {[%clk 0:02:02.8]}
11... cxd5 {[%clk 0:02:52.3]} 12. Nxd5 {[%clk 0:02:00.8]} 12... Nxd5 {[%clk
0:02:52]} 13. cxd5 {[%clk 0:02:00.6]} 13... f5 {[%clk 0:02:50.8]} 14. h3 {[%clk
0:01:47.8]} 14... fxe4 {[%clk 0:02:47.3]} 15. Rxe4 {[%clk 0:01:40.1]} 15... Bxf3
{[%clk 0:02:42.3]} 16. gxf3 {[%clk 0:01:41]} 16... Nd7 {[%clk 0:02:42.4]} 17.
Be3 {[%clk 0:01:36.5]} 17... Nf6 {[%clk 0:02:42.2]} 18. Rc4 {[%clk 0:01:36.6]}
18... Qf7 {[%clk 0:02:39.3]} 19. Rac1 {[%clk 0:01:28.8]} 19... Nxd5 {[%clk
0:02:36.7]} 20. Re4 {[%clk 0:01:07.3]} 20... Nf6 {[%clk 0:02:28.2]} 21. Rec4
{[%clk 0:01:00.9]} 21... b6 {[%clk 0:01:41.3]} 22. Rc7 {[%clk 0:00:40.8]} 22...
Qe6 {[%clk 0:01:40.2]} 23. R1c6 {[%clk 0:00:41.1]} 23... Kh8 {[%clk 0:01:34.1]}
24. Rxd6 {[%clk 0:00:40.4]} 24... Qxa2 {[%clk 0:01:32.9]} 25. Qc1 {[%clk
0:00:32.1]} 25... Rad8 {[%clk 0:01:07.8]} 26. Rxd8 {[%clk 0:00:16.5]} 26... Rxd8
{[%clk 0:01:08.7]} 27. Bh6 {[%clk 0:00:13.4]} 27... Nh5 {[%clk 0:00:49.1]} 28.
Bxg7+ {[%clk 0:00:11]} 28... Nxg7 {[%clk 0:00:49]} 29. Bc4 {[%clk 0:00:06.2]}
29... Qa4 {[%clk 0:00:39.3]} 30. Qh6 {[%clk 0:00:06]} 30... Qd1+ {[%clk
0:00:31]} 31. Kg2 {[%clk 0:00:06.2]} 31... Rd7 {[%clk 0:00:31.4]} 32. Rc8+
{[%clk 0:00:04]} 32... Rd8 {[%clk 0:00:31.7]} 33. Rc7 {[%clk 0:00:03.1]} 33...
Rd7 {[%clk 0:00:26.2]} 34. Rc8+ {[%clk 0:00:03.1]} 34... Rd8 {[%clk 0:00:25.6]}
35. Rc7 {[%clk 0:00:03.4]} 1/2-1/2

[Event "*** SCC Grand Prix: Titled Tuesday Blitz"]
[Site "Chess.com"]
[Date "2020.07.21"]
[Round "6"]
[White "crescentmoon2411"]
[Black "TST2014"]
[Result "1-0"]
[WhiteElo "2811"]
[BlackElo "2514"]
[TimeControl "180+1"]
[EndTime "11:06:41 PDT"]
[Termination "crescentmoon2411 won by resignation"]

1. d4 {[%clk 0:03:00.9]} 1... Nf6 {[%clk 0:02:58.4]} 2. Nf3 {[%clk 0:03:01.5]}
2... g6 {[%clk 0:02:57]} 3. Bf4 {[%clk 0:03:01.3]} 3... Bg7 {[%clk 0:02:57.2]}
4. e3 {[%clk 0:03:01.9]} 4... O-O {[%clk 0:02:57.5]} 5. h3 {[%clk 0:03:00.9]}
5... d6 {[%clk 0:02:57.4]} 6. Be2 {[%clk 0:02:59.5]} 6... Nbd7 {[%clk
0:02:56.9]} 7. O-O {[%clk 0:02:58.5]} 7... e6 {[%clk 0:02:56.8]} 8. c4 {[%clk
0:02:57.8]} 8... Qe7 {[%clk 0:02:56.6]} 9. Nc3 {[%clk 0:02:57.7]} 9... b6 {[%clk
0:02:56.5]} 10. Re1 {[%clk 0:02:54.7]} 10... Bb7 {[%clk 0:02:55.9]} 11. Qc2
{[%clk 0:02:54.8]} 11... e5 {[%clk 0:02:46.6]} 12. Bh2 {[%clk 0:02:54.8]} 12...
Rfe8 {[%clk 0:02:22.4]} 13. a4 {[%clk 0:02:51.1]} 13... a5 {[%clk 0:02:20.3]}
14. Nb5 {[%clk 0:02:45.5]} 14... Rac8 {[%clk 0:02:17.6]} 15. Rad1 {[%clk
0:02:37.2]} 15... Ne4 {[%clk 0:02:15.7]} 16. Nd2 {[%clk 0:02:03.1]} 16... Nxd2
{[%clk 0:02:06]} 17. Qxd2 {[%clk 0:02:04]} 17... Qg5 {[%clk 0:02:03.1]} 18. Bf1
{[%clk 0:02:03]} 18... exd4 {[%clk 0:01:58.9]} 19. exd4 {[%clk 0:01:54.9]} 19...
Qxd2 {[%clk 0:01:50.2]} 20. Rxe8+ {[%clk 0:01:54.5]} 20... Rxe8 {[%clk
0:01:50.1]} 21. Rxd2 {[%clk 0:01:55.4]} 21... Rc8 {[%clk 0:01:11.3]} 22. g4
{[%clk 0:01:54.6]} 22... Ba6 {[%clk 0:01:01.6]} 23. Bg2 {[%clk 0:01:50.1]} 23...
Bxb5 {[%clk 0:00:59.1]} 24. cxb5 {[%clk 0:01:49.9]} 24... Re8 {[%clk 0:00:52.6]}
25. Bf3 {[%clk 0:01:30.7]} 25... Nf8 {[%clk 0:00:46]} 26. Bf4 {[%clk 0:01:26.2]}
26... Ne6 {[%clk 0:00:43.4]} 27. Be3 {[%clk 0:01:26.4]} 27... f5 {[%clk
0:00:43.6]} 28. Bd5 {[%clk 0:01:25.1]} 28... Kf8 {[%clk 0:00:40.9]} 29. Bxe6
{[%clk 0:01:20.7]} 29... Rxe6 {[%clk 0:00:41.8]} 30. Rc2 {[%clk 0:01:20.6]}
30... Re7 {[%clk 0:00:39.9]} 31. Bg5 {[%clk 0:01:17.7]} 31... Rd7 {[%clk
0:00:36.8]} 32. gxf5 {[%clk 0:01:14.7]} 32... Bxd4 {[%clk 0:00:33.9]} 33. fxg6
{[%clk 0:01:14.6]} 33... hxg6 {[%clk 0:00:33.8]} 34. b3 {[%clk 0:01:11.3]} 34...
Rf7 {[%clk 0:00:33.7]} 35. Kg2 {[%clk 0:01:10.2]} 35... Ke8 {[%clk 0:00:33.1]}
36. f4 {[%clk 0:01:08.9]} 36... Kd7 {[%clk 0:00:31.3]} 37. h4 {[%clk 0:01:08.4]}
37... d5 {[%clk 0:00:26.6]} 38. Rd2 {[%clk 0:01:08.4]} 38... Be3 {[%clk
0:00:24.4]} 39. Rxd5+ {[%clk 0:01:08.7]} 39... Kc8 {[%clk 0:00:23.9]} 40. Kf3
{[%clk 0:01:08.8]} 40... Bc1 {[%clk 0:00:23.7]} 41. Rd8+ {[%clk 0:01:08.7]}
41... Kb7 {[%clk 0:00:23.5]} 42. Rg8 {[%clk 0:01:09.3]} 42... Rd7 {[%clk
0:00:19.4]} 43. Rxg6 {[%clk 0:01:07.6]} 43... Rd3+ {[%clk 0:00:19.1]} 44. Kg4
{[%clk 0:01:07.9]} 44... Rxb3 {[%clk 0:00:19.6]} 45. h5 {[%clk 0:01:08.3]} 45...
Bb2 {[%clk 0:00:19.6]} 46. h6 {[%clk 0:01:08.4]} 46... Ra3 {[%clk 0:00:19.2]}
47. h7 {[%clk 0:01:08.5]} 47... Rxa4 {[%clk 0:00:19.5]} 48. Bf6 {[%clk
0:01:08.7]} 48... Bc1 {[%clk 0:00:19.7]} 49. h8=Q {[%clk 0:01:07.6]} 49... Rxf4+
{[%clk 0:00:19.6]} 50. Kg3 {[%clk 0:01:07.9]} 50... a4 {[%clk 0:00:18.6]} 51.
Qh1+ {[%clk 0:01:07.4]} 51... Ka7 {[%clk 0:00:18.1]} 52. Rg8 {[%clk 0:01:07.4]}
52... Rf3+ {[%clk 0:00:17.2]} 53. Qxf3 {[%clk 0:01:07.1]} 53... Bf4+ {[%clk
0:00:17.1]} 54. Kxf4 {[%clk 0:01:07]} 54... c6 {[%clk 0:00:17.4]} 55. Qxc6
{[%clk 0:01:06.9]} 1-0

[Event "*** SCC Grand Prix: Titled Tuesday Blitz"]
[Site "Chess.com"]
[Date "2020.07.21"]
[Round "6"]
[White "nitpicker"]
[Black "j2806"]
[Result "0-1"]
[WhiteElo "2214"]
[BlackElo "2059"]
[TimeControl "180+1"]
[EndTime "11:06:41 PDT"]
[Termination "j2806 won on time"]

1. d4 {[%clk 0:03:00.9]} 1... Nf6 {[%clk 0:02:59.4]} 2. c4 {[%clk 0:03:00.8]}
2... e6 {[%clk 0:02:59.9]} 3. Nf3 {[%clk 0:02:59.9]} 3... d5 {[%clk 0:03:00.3]}
4. g3 {[%clk 0:02:59.3]} 4... Be7 {[%clk 0:02:59.7]} 5. Bg2 {[%clk 0:02:59.4]}
5... O-O {[%clk 0:02:58.6]} 6. O-O {[%clk 0:02:59.2]} 6... dxc4 {[%clk
0:02:58.8]} 7. Ne5 {[%clk 0:02:59]} 7... Nc6 {[%clk 0:02:56.4]} 8. Bxc6 {[%clk
0:02:58.8]} 8... bxc6 {[%clk 0:02:53.1]} 9. Nxc6 {[%clk 0:02:59.7]} 9... Qe8
{[%clk 0:02:43.2]} 10. Nxe7+ {[%clk 0:03:00.2]} 10... Qxe7 {[%clk 0:02:41.8]}
11. Qa4 {[%clk 0:03:01.1]} 11... c5 {[%clk 0:02:24.2]} 12. Qc6 {[%clk
0:03:00.9]} 12... Rb8 {[%clk 0:02:02.6]} 13. Qxc5 {[%clk 0:02:51.3]} 13... Qd7
{[%clk 0:01:57.5]} 14. Qxc4 {[%clk 0:02:13.7]} 14... Bb7 {[%clk 0:01:55]} 15.
Nc3 {[%clk 0:02:07.9]} 15... Rfc8 {[%clk 0:01:50.6]} 16. Qd3 {[%clk 0:02:07.3]}
16... Rd8 {[%clk 0:01:42.1]} 17. Rd1 {[%clk 0:01:37]} 17... e5 {[%clk 0:01:25]}
18. Bg5 {[%clk 0:01:29.3]} 18... Qh3 {[%clk 0:01:21.6]} 19. e4 {[%clk 0:00:30]}
19... Ng4 {[%clk 0:01:02.4]} 20. Qc2 {[%clk 0:00:29.6]} 20... Qxh2+ {[%clk
0:00:59.5]} 21. Kf1 {[%clk 0:00:29.3]} 21... f6 {[%clk 0:00:46.5]} 22. Bc1
{[%clk 0:00:19]} 22... Qh1+ {[%clk 0:00:34.6]} 23. Ke2 {[%clk 0:00:18.5]} 23...
Ba6+ {[%clk 0:00:33.4]} 24. Rd3 {[%clk 0:00:08.7]} 24... Bxd3+ {[%clk
0:00:28.4]} 25. Qxd3 {[%clk 0:00:06.4]} 25... Rxd4 {[%clk 0:00:25.6]} 26. Qf3
{[%clk 0:00:05.4]} 26... Qxf3+ {[%clk 0:00:20.3]} 27. Kxf3 {[%clk 0:00:05.4]}
27... h5 {[%clk 0:00:16.3]} 28. Nd5 {[%clk 0:00:02.5]} 28... Rc4 {[%clk
0:00:12.2]} 29. b3 {[%clk 0:00:01.9]} 29... Rc3+ {[%clk 0:00:08.5]} 0-1

[Event "*** SCC Grand Prix: Titled Tuesday Blitz"]
[Site "Chess.com"]
[Date "2020.07.21"]
[Round "6"]
[White "Playgood28"]
[Black "MNyuyu"]
[Result "1/2-1/2"]
[WhiteElo "2279"]
[BlackElo "2417"]
[TimeControl "180+1"]
[EndTime "11:06:46 PDT"]
[Termination "Game drawn by repetition"]

1. d4 {[%clk 0:03:00.9]} 1... d5 {[%clk 0:02:58.5]} 2. c4 {[%clk 0:03:00.5]}
2... e6 {[%clk 0:02:58.5]} 3. Nc3 {[%clk 0:03:00.3]} 3... Be7 {[%clk 0:02:58.6]}
4. Nf3 {[%clk 0:02:57.7]} 4... Nf6 {[%clk 0:02:58.3]} 5. cxd5 {[%clk 0:02:57.3]}
5... exd5 {[%clk 0:02:58.1]} 6. Bg5 {[%clk 0:02:54.9]} 6... c6 {[%clk
0:02:57.3]} 7. Qc2 {[%clk 0:02:53.5]} 7... g6 {[%clk 0:02:56.7]} 8. e3 {[%clk
0:02:53.1]} 8... Bf5 {[%clk 0:02:56.2]} 9. Bd3 {[%clk 0:02:53]} 9... Bxd3 {[%clk
0:02:55.6]} 10. Qxd3 {[%clk 0:02:52.9]} 10... Nbd7 {[%clk 0:02:55.8]} 11. O-O
{[%clk 0:02:51.4]} 11... O-O {[%clk 0:02:55.6]} 12. Rab1 {[%clk 0:02:51.1]}
12... Re8 {[%clk 0:02:50.3]} 13. Nd2 {[%clk 0:02:44.5]} 13... a5 {[%clk
0:02:46]} 14. a3 {[%clk 0:02:43.3]} 14... a4 {[%clk 0:02:45]} 15. Rfc1 {[%clk
0:02:29.2]} 15... b5 {[%clk 0:02:32.6]} 16. Na2 {[%clk 0:02:22.8]} 16... Rc8
{[%clk 0:02:28.8]} 17. Nb4 {[%clk 0:02:20.4]} 17... Bxb4 {[%clk 0:02:28.3]} 18.
axb4 {[%clk 0:02:18.5]} 18... Nb6 {[%clk 0:02:28.1]} 19. b3 {[%clk 0:02:09.6]}
19... axb3 {[%clk 0:02:26.5]} 20. Nxb3 {[%clk 0:02:08.2]} 20... Nc4 {[%clk
0:02:26.1]} 21. Nc5 {[%clk 0:02:07.9]} 21... Qd6 {[%clk 0:02:24.3]} 22. Bf4
{[%clk 0:01:57.9]} 22... Qe7 {[%clk 0:02:24]} 23. Ra1 {[%clk 0:01:54.1]} 23...
Ra8 {[%clk 0:02:22.4]} 24. Bg5 {[%clk 0:01:51.5]} 24... Qd6 {[%clk 0:02:21.1]}
25. Bf4 {[%clk 0:01:51.2]} 25... Qe7 {[%clk 0:02:16.6]} 26. Bg5 {[%clk
0:01:50.7]} 26... Kg7 {[%clk 0:02:15.7]} 27. h3 {[%clk 0:01:44.1]} 27... h6
{[%clk 0:02:15.1]} 28. Bf4 {[%clk 0:01:42.2]} 28... Nd7 {[%clk 0:02:02.3]} 29.
Qc3 {[%clk 0:01:35.7]} 29... Nxc5 {[%clk 0:01:59]} 30. dxc5+ {[%clk 0:01:33.4]}
30... f6 {[%clk 0:01:53.7]} 31. Rxa8 {[%clk 0:01:30.6]} 31... Rxa8 {[%clk
0:01:52.7]} 32. Ra1 {[%clk 0:01:31.1]} 32... Rxa1+ {[%clk 0:01:38.2]} 33. Qxa1
{[%clk 0:01:30.3]} 33... g5 {[%clk 0:01:38]} 34. Bg3 {[%clk 0:01:24.6]} 34... h5
{[%clk 0:01:36.5]} 35. Qa6 {[%clk 0:01:21.1]} 35... h4 {[%clk 0:01:34.1]} 36.
Bb8 {[%clk 0:01:20.4]} 36... Qd7 {[%clk 0:01:28.2]} 37. Qa8 {[%clk 0:01:08.1]}
37... Nd2 {[%clk 0:01:23.8]} 38. Bd6 {[%clk 0:01:02.4]} 38... Ne4 {[%clk
0:01:19.7]} 39. Qf8+ {[%clk 0:01:00.3]} 39... Kh7 {[%clk 0:01:16.6]} 40. f3
{[%clk 0:00:56.2]} 40... Ng3 {[%clk 0:00:49.1]} 41. Qxf6 {[%clk 0:00:54.7]}
41... Qf5 {[%clk 0:00:44.7]} 42. Qe7+ {[%clk 0:00:31.1]} 42... Kg6 {[%clk
0:00:40.1]} 43. Qe8+ {[%clk 0:00:23.5]} 43... Kh7 {[%clk 0:00:38]} 44. Qe7+
{[%clk 0:00:21.5]} 44... Kg6 {[%clk 0:00:37.4]} 45. Qe8+ {[%clk 0:00:21.3]}
45... Kh7 {[%clk 0:00:32.2]} 46. Qe7+ {[%clk 0:00:21]} 1/2-1/2

[Event "*** SCC Grand Prix: Titled Tuesday Blitz"]
[Site "Chess.com"]
[Date "2020.07.21"]
[Round "6"]
[White "pavelalexandru07"]
[Black "petincash"]
[Result "0-1"]
[WhiteElo "2137"]
[BlackElo "2364"]
[TimeControl "180+1"]
[EndTime "11:06:46 PDT"]
[Termination "petincash won on time"]

1. d4 {[%clk 0:03:00.9]} 1... Nf6 {[%clk 0:02:59.6]} 2. c4 {[%clk 0:03:00.9]}
2... g6 {[%clk 0:03:00]} 3. Nc3 {[%clk 0:03:00.5]} 3... Bg7 {[%clk 0:03:00.5]}
4. e4 {[%clk 0:03:00.8]} 4... O-O {[%clk 0:03:00.9]} 5. Be2 {[%clk 0:03:01.2]}
5... d6 {[%clk 0:03:01.2]} 6. Be3 {[%clk 0:03:00.5]} 6... e5 {[%clk 0:02:58.2]}
7. d5 {[%clk 0:03:00.6]} 7... Na6 {[%clk 0:02:57.8]} 8. g4 {[%clk 0:02:59]} 8...
Nc5 {[%clk 0:02:56.9]} 9. f3 {[%clk 0:02:59]} 9... a5 {[%clk 0:02:56.7]} 10. h4
{[%clk 0:02:57.4]} 10... h5 {[%clk 0:02:46]} 11. g5 {[%clk 0:02:52.1]} 11... Nh7
{[%clk 0:02:43.3]} 12. Nh3 {[%clk 0:02:52.1]} 12... Bxh3 {[%clk 0:02:27.9]} 13.
Rxh3 {[%clk 0:02:53]} 13... f6 {[%clk 0:02:19.8]} 14. Qd2 {[%clk 0:02:28.9]}
14... fxg5 {[%clk 0:02:14.4]} 15. hxg5 {[%clk 0:02:28]} 15... Rf4 {[%clk
0:02:10.7]} 16. Bxf4 {[%clk 0:02:19.3]} 16... exf4 {[%clk 0:02:10.9]} 17. Qxf4
{[%clk 0:02:20.2]} 17... Nxg5 {[%clk 0:01:50.6]} 18. Rg3 {[%clk 0:02:11.1]}
18... Bh6 {[%clk 0:01:49.4]} 19. O-O-O {[%clk 0:01:35.5]} 19... Kh7 {[%clk
0:01:33.4]} 20. Kb1 {[%clk 0:01:26.7]} 20... Qe7 {[%clk 0:01:27.4]} 21. Qh4
{[%clk 0:01:14.8]} 21... Re8 {[%clk 0:00:45]} 22. Rdg1 {[%clk 0:01:12.2]} 22...
Nf7 {[%clk 0:00:36.9]} 23. Qxe7 {[%clk 0:00:50.1]} 23... Rxe7 {[%clk 0:00:37.8]}
24. Rxg6 {[%clk 0:00:50.6]} 24... Ne5 {[%clk 0:00:38.1]} 25. R6g2 {[%clk
0:00:20.8]} 25... Ncd3 {[%clk 0:00:18.7]} 26. Bxd3 {[%clk 0:00:20.6]} 26... Nxd3
{[%clk 0:00:19]} 27. Ne2 {[%clk 0:00:21.2]} 27... Rf7 {[%clk 0:00:16.3]} 28. Rg3
{[%clk 0:00:17.1]} 28... Ne5 {[%clk 0:00:11.2]} 29. Rf1 {[%clk 0:00:14.5]} 29...
Nxc4 {[%clk 0:00:11]} 0-1

[Event "*** SCC Grand Prix: Titled Tuesday Blitz"]
[Site "Chess.com"]
[Date "2020.07.21"]
[Round "6"]
[White "OparinGrigoriy"]
[Black "Grandelicious"]
[Result "1-0"]
[WhiteElo "2943"]
[BlackElo "2795"]
[TimeControl "180+1"]
[EndTime "11:06:47 PDT"]
[Termination "OparinGrigoriy won by resignation"]

1. Nf3 {[%clk 0:03:00.9]} 1... c5 {[%clk 0:02:55.8]} 2. c4 {[%clk 0:03:00.7]}
2... Nc6 {[%clk 0:02:54.4]} 3. d4 {[%clk 0:03:01.2]} 3... cxd4 {[%clk
0:02:55.3]} 4. Nxd4 {[%clk 0:03:02]} 4... e5 {[%clk 0:02:55.2]} 5. Nb5 {[%clk
0:03:00.3]} 5... a6 {[%clk 0:02:55.1]} 6. N5c3 {[%clk 0:03:00.4]} 6... Bc5
{[%clk 0:02:51.6]} 7. Ne4 {[%clk 0:02:40.2]} 7... Be7 {[%clk 0:02:24.7]} 8. Nbc3
{[%clk 0:02:32.6]} 8... d6 {[%clk 0:02:02.6]} 9. Nd5 {[%clk 0:02:30.5]} 9... Bf5
{[%clk 0:01:52.2]} 10. Nec3 {[%clk 0:02:12.3]} 10... Nf6 {[%clk 0:01:46.5]} 11.
Be3 {[%clk 0:01:49]} 11... O-O {[%clk 0:01:31.6]} 12. Nxf6+ {[%clk 0:01:30.3]}
12... Bxf6 {[%clk 0:01:32.5]} 13. g3 {[%clk 0:01:31]} 13... Nd4 {[%clk
0:01:20.2]} 14. Rc1 {[%clk 0:01:30.9]} 14... Rc8 {[%clk 0:01:18.7]} 15. b3
{[%clk 0:00:48.9]} 15... b5 {[%clk 0:01:10.9]} 16. cxb5 {[%clk 0:00:46.7]} 16...
axb5 {[%clk 0:00:57.4]} 17. Bg2 {[%clk 0:00:20.4]} 17... Nc2+ {[%clk 0:00:56.6]}
18. Rxc2 {[%clk 0:00:19.7]} 18... Bxc2 {[%clk 0:00:57.5]} 19. Qxc2 {[%clk
0:00:19.1]} 19... b4 {[%clk 0:00:56.2]} 20. O-O {[%clk 0:00:18.3]} 20... Rxc3
{[%clk 0:00:53.4]} 21. Qd1 {[%clk 0:00:17.2]} 21... Qc7 {[%clk 0:00:47.7]} 22.
Bd2 {[%clk 0:00:16.4]} 22... Rd8 {[%clk 0:00:18.3]} 23. Bxc3 {[%clk 0:00:12.5]}
23... bxc3 {[%clk 0:00:19.2]} 24. Bd5 {[%clk 0:00:13]} 24... c2 {[%clk
0:00:17.2]} 25. Qd2 {[%clk 0:00:12.9]} 25... Rc8 {[%clk 0:00:10.1]} 26. Rc1
{[%clk 0:00:13]} 26... Qc5 {[%clk 0:00:10.2]} 27. Be4 {[%clk 0:00:09]} 27... Qa3
{[%clk 0:00:08.1]} 28. Rxc2 {[%clk 0:00:09.1]} 28... Rxc2 {[%clk 0:00:08.3]} 29.
Qxc2 {[%clk 0:00:10]} 29... g6 {[%clk 0:00:08.8]} 30. Bd5 {[%clk 0:00:09.8]}
30... Kg7 {[%clk 0:00:07.7]} 31. Qc7 {[%clk 0:00:08.2]} 31... Qb2 {[%clk
0:00:02.7]} 32. Qxf7+ {[%clk 0:00:08.1]} 1-0

[Event "*** SCC Grand Prix: Titled Tuesday Blitz"]
[Site "Chess.com"]
[Date "2020.07.21"]
[Round "6"]
[White "grunbergmihai"]
[Black "Shubinkirill2003"]
[Result "1-0"]
[WhiteElo "2439"]
[BlackElo "2633"]
[TimeControl "180+1"]
[EndTime "11:06:47 PDT"]
[Termination "grunbergmihai won by resignation"]

1. Nf3 {[%clk 0:03:00.9]} 1... Nf6 {[%clk 0:02:59.8]} 2. c4 {[%clk 0:03:00.1]}
2... b6 {[%clk 0:02:59.9]} 3. g3 {[%clk 0:03:00.7]} 3... Bb7 {[%clk 0:03:00]} 4.
Bg2 {[%clk 0:03:01.6]} 4... e6 {[%clk 0:03:00.6]} 5. O-O {[%clk 0:03:02]} 5...
Be7 {[%clk 0:03:01.2]} 6. d4 {[%clk 0:03:02.5]} 6... O-O {[%clk 0:03:01.4]} 7.
Nc3 {[%clk 0:03:02.9]} 7... Ne4 {[%clk 0:03:01.9]} 8. Qc2 {[%clk 0:03:02.7]}
8... Nxc3 {[%clk 0:03:01.7]} 9. Qxc3 {[%clk 0:03:02.8]} 9... c5 {[%clk
0:03:01.9]} 10. b3 {[%clk 0:02:58.2]} 10... Bf6 {[%clk 0:03:01.8]} 11. e3 {[%clk
0:02:56]} 11... Nc6 {[%clk 0:02:58.4]} 12. Bb2 {[%clk 0:02:53.3]} 12... cxd4
{[%clk 0:02:56.2]} 13. exd4 {[%clk 0:02:51.1]} 13... d5 {[%clk 0:02:56.3]} 14.
Rfd1 {[%clk 0:02:43.8]} 14... Rc8 {[%clk 0:02:54.5]} 15. Ne5 {[%clk 0:02:25.3]}
15... dxc4 {[%clk 0:02:30.6]} 16. bxc4 {[%clk 0:02:24.4]} 16... Na5 {[%clk
0:02:25.5]} 17. Bxb7 {[%clk 0:02:22.9]} 17... Nxb7 {[%clk 0:02:26.4]} 18. Qf3
{[%clk 0:02:05.1]} 18... Na5 {[%clk 0:02:22.8]} 19. c5 {[%clk 0:01:52]} 19... b5
{[%clk 0:01:56.5]} 20. d5 {[%clk 0:01:41.5]} 20... Bxe5 {[%clk 0:01:44.6]} 21.
Bxe5 {[%clk 0:01:35.8]} 21... Nc4 {[%clk 0:01:44.7]} 22. Bc3 {[%clk 0:01:06.8]}
22... e5 {[%clk 0:01:29.4]} 23. c6 {[%clk 0:01:05.5]} 23... Qd6 {[%clk
0:01:27.6]} 24. Rab1 {[%clk 0:01:00.5]} 24... a5 {[%clk 0:01:13.3]} 25. Rxb5
{[%clk 0:00:59]} 25... f5 {[%clk 0:01:08.6]} 26. Rb7 {[%clk 0:00:55.9]} 26...
Rf6 {[%clk 0:00:41.7]} 27. Rd7 {[%clk 0:00:52.9]} 27... Qc5 {[%clk 0:00:39.8]}
28. Qh5 {[%clk 0:00:46.1]} 28... f4 {[%clk 0:00:23.3]} 29. Qg5 {[%clk
0:00:37.8]} 29... Rg6 {[%clk 0:00:22.4]} 30. Rd8+ {[%clk 0:00:37.2]} 30... Rxd8
{[%clk 0:00:19.2]} 31. Qxd8+ {[%clk 0:00:36.8]} 31... Kf7 {[%clk 0:00:19.3]} 32.
Qd7+ {[%clk 0:00:33.6]} 32... Kf8 {[%clk 0:00:19.3]} 33. c7 {[%clk 0:00:31.9]}
33... Nb6 {[%clk 0:00:19.3]} 34. Qd8+ {[%clk 0:00:26.3]} 34... Kf7 {[%clk
0:00:19.2]} 35. Bxe5 {[%clk 0:00:23.1]} 35... fxg3 {[%clk 0:00:17.5]} 36. Bxg3
{[%clk 0:00:23]} 36... h5 {[%clk 0:00:17.2]} 37. Re1 {[%clk 0:00:22.1]} 37... h4
{[%clk 0:00:14.6]} 38. Qe8+ {[%clk 0:00:22]} 38... Kf6 {[%clk 0:00:14.4]} 39.
Re6+ {[%clk 0:00:21.8]} 1-0